[Event "Titled Tuesday Blitz March 21 Early 2023"]
[White "Kovalevsky, Stanislav"]
[Black "Orlov, Georgi"]
[WhiteFideId "13508598"]
[BlackFideId "2011271"]
[WhiteElo "2174"]
[BlackElo "2611"]
[Result "0-1"]
[Round "06"]
[TimeControl "180+2"]
[Date "2023.03.21"]
[WhiteClock "0:00:18"]
[BlackClock "0:00:22"]

1. c4 {[%clk 0:03:00]}  Nf6 {[%clk 0:02:58]} 2. Nc3 {[%clk 0:03:01]}  e5 {[%clk 0:02:57]} 3. g3 {[%clk 0:03:01]}  Nc6 {[%clk 0:02:57]} 4. Bg2 {[%clk 0:03:01]}  Bb4 {[%clk 0:02:56]} 5. e4 {[%clk 0:03:00]}  Bxc3 {[%clk 0:02:51]} 6. dxc3 {[%clk 0:03:00]}  h6 {[%clk 0:02:51]} 7. Qe2 {[%clk 0:02:58]}  b6 {[%clk 0:02:50]} 8. Nf3 {[%clk 0:02:58]}  a5 {[%clk 0:02:47]} 9. Nd2 {[%clk 0:02:58]}  a4 {[%clk 0:02:43]} 10. Nf1 {[%clk 0:02:57]}  Ba6 {[%clk 0:02:42]} 11. Ne3 {[%clk 0:02:57]}  Na5 {[%clk 0:02:40]} 12. O-O {[%clk 0:02:55]}  O-O {[%clk 0:02:38]} 13. f4 {[%clk 0:02:45]}  d6 {[%clk 0:02:38]} 14. Rd1 {[%clk 0:02:44]}  Qe8 {[%clk 0:02:31]} 15. f5 {[%clk 0:02:37]}  Qc6 {[%clk 0:02:26]} 16. Ng4 {[%clk 0:02:26]}  Nxg4 {[%clk 0:01:56]} 17. Qxg4 {[%clk 0:02:26]}  f6 {[%clk 0:01:56]} 18. Bxh6 {[%clk 0:02:18]}  Rf7 {[%clk 0:01:56]} 19. Bf1 {[%clk 0:01:58]}  Bxc4 {[%clk 0:01:52]} 20. Be3 {[%clk 0:01:43]}  Bxf1 {[%clk 0:01:49]} 21. Rxf1 {[%clk 0:01:41]}  Nc4 {[%clk 0:01:49]} 22. Bc1 {[%clk 0:01:40]}  d5 {[%clk 0:01:47]} 23. exd5 {[%clk 0:01:33]}  Qxd5 {[%clk 0:01:47]} 24. Rb1 {[%clk 0:01:34]}  Rd8 {[%clk 0:01:40]} 25. b3 {[%clk 0:01:34]}  axb3 {[%clk 0:01:39]} 26. axb3 {[%clk 0:01:34]}  Qc5+ {[%clk 0:01:35]} 27. Kh1 {[%clk 0:01:15]}  Ne3 {[%clk 0:01:31]} 28. Bxe3 {[%clk 0:01:13]}  Qxe3 {[%clk 0:01:30]} 29. Rbd1 {[%clk 0:01:12]}  Rfd7 {[%clk 0:01:24]} 30. Rxd7 {[%clk 0:01:03]}  Rxd7 {[%clk 0:01:23]} 31. Qh5 {[%clk 0:01:03]}  Qe4+ {[%clk 0:01:12]} 32. Kg1 {[%clk 0:00:56]}  Rd8 {[%clk 0:01:12]} 33. Qf3 {[%clk 0:00:47]}  Qc2 {[%clk 0:00:46]} 34. b4 {[%clk 0:00:30]}  e4 {[%clk 0:00:34]} 35. Qh5 {[%clk 0:00:18]}  Qxc3 {[%clk 0:00:31]} 36. Kg2 {[%clk 0:00:19]}  Qxb4 {[%clk 0:00:29]} 37. Rf4 {[%clk 0:00:19]}  Rd2+ {[%clk 0:00:24]} 38. Kh3 {[%clk 0:00:19]}  Qb5 {[%clk 0:00:23]} 39. Rg4 {[%clk 0:00:18]}  Qf1+ {[%clk 0:00:22]} 40. Kh4 {[%clk 0:00:18]}  Rxh2# {[%clk 0:00:22]} 0-1


[Site "https://www.chess.com"]

[Event "Titled Tuesday Blitz March 21 Early 2023"]
[White "Vedder, Richard"]
[Black "Budrewicz, Krzysztof"]
[WhiteFideId "1004166"]
[BlackFideId "1127950"]
[WhiteElo "2168"]
[BlackElo "2230"]
[Result "0-1"]
[Round "06"]
[TimeControl "180+2"]
[Date "2023.03.21"]
[WhiteClock "0:00:14"]
[BlackClock "0:00:24"]

1. d4 {[%clk 0:03:00]}  Nf6 {[%clk 0:02:58]} 2. c4 {[%clk 0:03:00]}  g6 {[%clk 0:02:59]} 3. Nc3 {[%clk 0:03:00]}  Bg7 {[%clk 0:02:59]} 4. e4 {[%clk 0:02:59]}  O-O {[%clk 0:03:00]} 5. Nf3 {[%clk 0:02:59]}  d6 {[%clk 0:03:00]} 6. Be2 {[%clk 0:02:59]}  Nbd7 {[%clk 0:03:00]} 7. O-O {[%clk 0:02:59]}  e5 {[%clk 0:03:01]} 8. d5 {[%clk 0:02:59]}  Nc5 {[%clk 0:03:01]} 9. Qc2 {[%clk 0:03:00]}  a5 {[%clk 0:03:01]} 10. Bg5 {[%clk 0:03:00]}  h6 {[%clk 0:03:01]} 11. Be3 {[%clk 0:03:00]}  Bd7 {[%clk 0:03:01]} 12. Bxc5 {[%clk 0:02:49]}  dxc5 {[%clk 0:03:01]} 13. Nxe5 {[%clk 0:02:50]}  Re8 {[%clk 0:02:57]} 14. Nd3 {[%clk 0:02:48]}  Nxe4 {[%clk 0:02:50]} 15. Nxe4 {[%clk 0:02:46]}  Rxe4 {[%clk 0:02:49]} 16. Nxc5 {[%clk 0:02:46]}  Re8 {[%clk 0:02:49]} 17. Nxd7 {[%clk 0:02:41]}  Qxd7 {[%clk 0:02:49]} 18. Bf3 {[%clk 0:02:40]}  a4 {[%clk 0:02:40]} 19. Rae1 {[%clk 0:02:38]}  Bd4 {[%clk 0:02:22]} 20. Rd1 {[%clk 0:02:29]}  Bc5 {[%clk 0:02:21]} 21. Rfe1 {[%clk 0:02:26]}  a3 {[%clk 0:02:16]} 22. b3 {[%clk 0:02:24]}  Rxe1+ {[%clk 0:02:13]} 23. Rxe1 {[%clk 0:02:24]}  Re8 {[%clk 0:02:14]} 24. Rxe8+ {[%clk 0:02:16]}  Qxe8 {[%clk 0:02:15]} 25. Qe4 {[%clk 0:02:15]}  Qd8 {[%clk 0:02:14]} 26. h4 {[%clk 0:02:11]}  Qf6 {[%clk 0:02:13]} 27. h5 {[%clk 0:02:05]}  g5 {[%clk 0:02:04]} 28. Qc2 {[%clk 0:01:53]}  b6 {[%clk 0:01:58]} 29. Be4 {[%clk 0:01:49]}  Kg7 {[%clk 0:01:55]} 30. g3 {[%clk 0:01:49]}  Qe5 {[%clk 0:01:52]} 31. Kg2 {[%clk 0:01:48]}  g4 {[%clk 0:01:52]} 32. Bf5 {[%clk 0:01:44]}  Qd4 {[%clk 0:01:51]} 33. Qe2 {[%clk 0:01:37]}  Kf6 {[%clk 0:01:49]} 34. Bxg4 {[%clk 0:01:34]}  Kg7 {[%clk 0:01:41]} 35. Bd7 {[%clk 0:01:25]}  Qb2 {[%clk 0:01:39]} 36. Bg4 {[%clk 0:01:25]}  Kf6 {[%clk 0:01:34]} 37. f4 {[%clk 0:01:24]}  Bd4 {[%clk 0:01:25]} 38. Bf3 {[%clk 0:01:22]}  Qa1 {[%clk 0:01:24]} 39. Kh3 {[%clk 0:01:17]}  Bb2 {[%clk 0:01:15]} 40. Qe8 {[%clk 0:01:10]}  Qxa2 {[%clk 0:01:12]} 41. Qh8+ {[%clk 0:01:00]}  Ke7 {[%clk 0:01:12]} 42. Qxh6 {[%clk 0:00:59]}  Qb1 {[%clk 0:01:03]} 43. Qc6 {[%clk 0:00:54]}  Qf5+ {[%clk 0:00:56]} 44. Bg4 {[%clk 0:00:54]}  Qf6 {[%clk 0:00:50]} 45. Qxc7+ {[%clk 0:00:51]}  Kf8 {[%clk 0:00:50]} 46. Qb8+ {[%clk 0:00:45]}  Kg7 {[%clk 0:00:50]} 47. Qa8 {[%clk 0:00:43]}  Qd4 {[%clk 0:00:42]} 48. Bf5 {[%clk 0:00:30]}  Qd1 {[%clk 0:00:35]} 49. g4 {[%clk 0:00:17]}  Qf3+ {[%clk 0:00:34]} 50. Kh4 {[%clk 0:00:17]}  Qxf4 {[%clk 0:00:35]} 51. Qa7 {[%clk 0:00:15]}  Bf6+ {[%clk 0:00:33]} 52. Kh3 {[%clk 0:00:16]}  Qe3+ {[%clk 0:00:33]} 53. Kg2 {[%clk 0:00:16]}  Qxb3 {[%clk 0:00:33]} 54. Be6 {[%clk 0:00:13]}  Qb2+ {[%clk 0:00:28]} 55. Kg3 {[%clk 0:00:13]}  Qe5+ {[%clk 0:00:27]} 56. Kg2 {[%clk 0:00:13]}  Qe4+ {[%clk 0:00:28]} 57. Kg3 {[%clk 0:00:14]}  Be5+ {[%clk 0:00:28]} 58. Kf2 {[%clk 0:00:14]}  Qf4+ {[%clk 0:00:28]} 59. Kg2 {[%clk 0:00:14]}  Qd2+ {[%clk 0:00:27]} 60. Kf3 {[%clk 0:00:14]}  Qd3+ {[%clk 0:00:26]} 61. Kg2 {[%clk 0:00:14]}  Qe2+ {[%clk 0:00:26]} 62. Kh3 {[%clk 0:00:14]}  Qf3+ {[%clk 0:00:26]} 63. Kh4 {[%clk 0:00:13]}  Qg3+ {[%clk 0:00:25]} 64. Kg5 {[%clk 0:00:13]}  Bf6+ {[%clk 0:00:24]} 65. Kf5 {[%clk 0:00:14]}  Qe5# {[%clk 0:00:24]} 0-1


[Site "https://www.chess.com"]

[Event "Titled Tuesday Blitz March 21 Early 2023"]
[White "Fernandez Garcia, Gumersindo"]
[Black "MKlose11"]
[WhiteFideId "24516740"]
[WhiteElo "2093"]
[BlackElo "2588"]
[Result "1-0"]
[Round "06"]
[TimeControl "180+2"]
[Date "2023.03.21"]
[WhiteClock "0:00:10"]
[BlackClock "0:00:26"]

1. e4 {[%clk 0:03:00]}  e6 {[%clk 0:03:00]} 2. d4 {[%clk 0:03:00]}  d5 {[%clk 0:03:01]} 3. Bd3 {[%clk 0:03:00]}  Be7 {[%clk 0:03:00]} 4. e5 {[%clk 0:02:55]}  c5 {[%clk 0:03:00]} 5. c3 {[%clk 0:02:54]}  Nc6 {[%clk 0:03:00]} 6. Ne2 {[%clk 0:02:53]}  Bd7 {[%clk 0:03:00]} 7. Nd2 {[%clk 0:02:53]}  cxd4 {[%clk 0:02:59]} 8. cxd4 {[%clk 0:02:53]}  Qb6 {[%clk 0:02:59]} 9. Nf3 {[%clk 0:02:50]}  Nb4 {[%clk 0:02:59]} 10. Bb1 {[%clk 0:02:49]}  Bb5 {[%clk 0:02:59]} 11. a3 {[%clk 0:02:42]}  Qa6 {[%clk 0:02:59]} 12. Nc3 {[%clk 0:02:16]}  Nd3+ {[%clk 0:02:56]} 13. Bxd3 {[%clk 0:02:05]}  Bxd3 {[%clk 0:02:57]} 14. Bg5 {[%clk 0:02:05]}  h6 {[%clk 0:02:52]} 15. Bxe7 {[%clk 0:02:01]}  Nxe7 {[%clk 0:02:52]} 16. Qd2 {[%clk 0:02:01]}  O-O {[%clk 0:02:45]} 17. Rd1 {[%clk 0:01:56]}  Bc4 {[%clk 0:02:44]} 18. Qe3 {[%clk 0:01:52]}  Nf5 {[%clk 0:02:40]} 19. Qf4 {[%clk 0:01:46]}  Rac8 {[%clk 0:02:37]} 20. g4 {[%clk 0:01:43]}  Ne7 {[%clk 0:02:37]} 21. Nd2 {[%clk 0:01:41]}  Bd3 {[%clk 0:02:33]} 22. Qe3 {[%clk 0:01:37]}  f6 {[%clk 0:02:18]} 23. Nf3 {[%clk 0:01:22]}  Bc4 {[%clk 0:02:10]} 24. Nd2 {[%clk 0:00:54]}  fxe5 {[%clk 0:02:06]} 25. Nxc4 {[%clk 0:00:54]}  Qxc4 {[%clk 0:02:04]} 26. Qxe5 {[%clk 0:00:51]}  Ng6 {[%clk 0:02:04]} 27. Qe3 {[%clk 0:00:42]}  Nh4 {[%clk 0:02:00]} 28. Kd2 {[%clk 0:00:30]}  Nf3+ {[%clk 0:01:53]} 29. Kc1 {[%clk 0:00:29]}  Rf6 {[%clk 0:01:46]} 30. h4 {[%clk 0:00:28]}  Qc6 {[%clk 0:01:06]} 31. g5 {[%clk 0:00:28]}  hxg5 {[%clk 0:01:06]} 32. hxg5 {[%clk 0:00:29]}  Rf5 {[%clk 0:01:07]} 33. g6 {[%clk 0:00:26]}  Rcf8 {[%clk 0:00:56]} 34. Rh3 {[%clk 0:00:24]}  R8f6 {[%clk 0:00:56]} 35. Rdh1 {[%clk 0:00:22]}  Kf8 {[%clk 0:00:52]} 36. Kb1 {[%clk 0:00:18]}  Ke7 {[%clk 0:00:46]} 37. Ka1 {[%clk 0:00:18]}  b5 {[%clk 0:00:45]} 38. Na2 {[%clk 0:00:16]}  Qb6 {[%clk 0:00:41]} 39. Nb4 {[%clk 0:00:15]}  a5 {[%clk 0:00:40]} 40. Nc2 {[%clk 0:00:15]}  b4 {[%clk 0:00:38]} 41. Rc1 {[%clk 0:00:14]}  b3 {[%clk 0:00:35]} 42. Ne1 {[%clk 0:00:13]}  Qxd4 {[%clk 0:00:30]} 43. Qxb3 {[%clk 0:00:10]}  Nxe1 {[%clk 0:00:26]} 44. Qb7+ {[%clk 0:00:10]}  Kd6 {[%clk 0:00:26]} 45. Qc7# {[%clk 0:00:10]} 1-0


[Site "https://www.chess.com"]

[Event "Titled Tuesday Blitz March 21 Early 2023"]
[White "Hoffmann, Asa"]
[Black "Koellner, Ruben Gideon"]
[WhiteFideId "2001470"]
[BlackFideId "12993093"]
[WhiteElo "2117"]
[BlackElo "2303"]
[Result "0-1"]
[Round "06"]
[TimeControl "180+2"]
[Date "2023.03.21"]
[WhiteClock "0:00:40"]
[BlackClock "0:01:11"]

1. d4 {[%clk 0:02:55]}  d6 {[%clk 0:03:00]} 2. e4 {[%clk 0:02:54]}  Nf6 {[%clk 0:03:01]} 3. f3 {[%clk 0:02:54]}  Nbd7 {[%clk 0:03:02]} 4. Nc3 {[%clk 0:02:52]}  e5 {[%clk 0:03:03]} 5. Nge2 {[%clk 0:02:52]}  Be7 {[%clk 0:03:03]} 6. Be3 {[%clk 0:02:52]}  O-O {[%clk 0:03:04]} 7. Qd2 {[%clk 0:02:52]}  c6 {[%clk 0:03:05]} 8. O-O-O {[%clk 0:02:51]}  b5 {[%clk 0:03:05]} 9. g4 {[%clk 0:02:49]}  b4 {[%clk 0:03:04]} 10. Nb1 {[%clk 0:02:47]}  Qa5 {[%clk 0:03:05]} 11. a3 {[%clk 0:02:46]}  d5 {[%clk 0:03:03]} 12. g5 {[%clk 0:02:42]}  Nh5 {[%clk 0:03:03]} 13. Ng3 {[%clk 0:02:38]}  Nf4 {[%clk 0:03:00]} 14. Nf5 {[%clk 0:02:34]}  Bxg5 {[%clk 0:02:56]} 15. axb4 {[%clk 0:02:29]}  Qa1 {[%clk 0:02:52]} 16. h4 {[%clk 0:02:27]}  Bf6 {[%clk 0:02:49]} 17. Bxf4 {[%clk 0:02:24]}  exf4 {[%clk 0:02:48]} 18. e5 {[%clk 0:02:24]}  Nxe5 {[%clk 0:02:44]} 19. dxe5 {[%clk 0:02:22]}  Bxe5 {[%clk 0:02:44]} 20. Nd4 {[%clk 0:02:21]}  a5 {[%clk 0:02:43]} 21. Re1 {[%clk 0:02:09]}  f6 {[%clk 0:02:41]} 22. Rxe5 {[%clk 0:02:04]}  fxe5 {[%clk 0:02:41]} 23. Nb3 {[%clk 0:02:04]}  Qa2 {[%clk 0:02:39]} 24. bxa5 {[%clk 0:02:02]}  Qa4 {[%clk 0:02:35]} 25. Rg1 {[%clk 0:01:55]}  Bf5 {[%clk 0:02:34]} 26. Bd3 {[%clk 0:01:53]}  Bxd3 {[%clk 0:02:33]} 27. Qxd3 {[%clk 0:01:53]}  Rf7 {[%clk 0:02:25]} 28. h5 {[%clk 0:01:49]}  e4 {[%clk 0:02:25]} 29. Qc3 {[%clk 0:01:44]}  exf3 {[%clk 0:02:20]} 30. h6 {[%clk 0:01:40]}  g6 {[%clk 0:02:18]} 31. Qxf3 {[%clk 0:01:38]}  Qe4 {[%clk 0:02:17]} 32. N1d2 {[%clk 0:01:31]}  Qe3 {[%clk 0:02:07]} 33. Rf1 {[%clk 0:01:20]}  Rd8 {[%clk 0:01:57]} 34. Qg4 {[%clk 0:01:14]}  f3 {[%clk 0:01:48]} 35. Kb1 {[%clk 0:01:11]}  f2 {[%clk 0:01:47]} 36. a6 {[%clk 0:01:06]}  c5 {[%clk 0:01:39]} 37. Qd1 {[%clk 0:00:59]}  c4 {[%clk 0:01:38]} 38. Na5 {[%clk 0:00:58]}  Qb6 {[%clk 0:01:37]} 39. Nb7 {[%clk 0:00:55]}  Re8 {[%clk 0:01:16]} 40. Nf3 {[%clk 0:00:49]}  c3 {[%clk 0:01:14]} 41. b3 {[%clk 0:00:46]}  Qxa6 {[%clk 0:01:13]} 42. Nc5 {[%clk 0:00:43]}  Qa3 {[%clk 0:01:11]} 43. Nd3 {[%clk 0:00:40]}  Ra8 {[%clk 0:01:11]} 0-1


[Site "https://www.chess.com"]

[Event "Titled Tuesday Blitz March 21 Early 2023"]
[White "Quinones Garcia, Santiago"]
[Black "rikchessmx"]
[WhiteFideId "4408497"]
[WhiteElo "2263"]
[BlackElo "2407"]
[Result "1-0"]
[Round "06"]
[TimeControl "180+2"]
[Date "2023.03.21"]
[WhiteClock "0:01:01"]
[BlackClock "0:00:17"]

1. d4 {[%clk 0:03:00]}  d5 {[%clk 0:02:54]} 2. c4 {[%clk 0:03:01]}  e6 {[%clk 0:02:52]} 3. Nc3 {[%clk 0:03:00]}  Nf6 {[%clk 0:02:51]} 4. Bg5 {[%clk 0:03:01]}  c6 {[%clk 0:02:12]} 5. e3 {[%clk 0:03:00]}  Be7 {[%clk 0:02:09]} 6. Nf3 {[%clk 0:03:00]}  O-O {[%clk 0:02:09]} 7. Bd3 {[%clk 0:03:00]}  b6 {[%clk 0:02:09]} 8. O-O {[%clk 0:03:01]}  Bb7 {[%clk 0:02:09]} 9. cxd5 {[%clk 0:03:01]}  exd5 {[%clk 0:02:08]} 10. Qc2 {[%clk 0:03:00]}  Nbd7 {[%clk 0:02:07]} 11. a3 {[%clk 0:02:59]}  h6 {[%clk 0:02:07]} 12. Bh4 {[%clk 0:02:59]}  Rb8 {[%clk 0:02:06]} 13. b4 {[%clk 0:02:59]}  Rc8 {[%clk 0:02:04]} 14. Bf5 {[%clk 0:02:55]}  Ne8 {[%clk 0:01:53]} 15. Bxe7 {[%clk 0:02:52]}  Qxe7 {[%clk 0:01:52]} 16. Ne5 {[%clk 0:02:48]}  Nef6 {[%clk 0:01:40]} 17. f4 {[%clk 0:02:47]}  Rc7 {[%clk 0:01:40]} 18. Rac1 {[%clk 0:02:39]}  c5 {[%clk 0:01:39]} 19. bxc5 {[%clk 0:02:33]}  bxc5 {[%clk 0:01:38]} 20. Nb5 {[%clk 0:02:30]}  Rcc8 {[%clk 0:01:37]} 21. Nxa7 {[%clk 0:02:30]}  Ra8 {[%clk 0:01:35]} 22. Nb5 {[%clk 0:02:29]}  c4 {[%clk 0:01:33]} 23. Ra1 {[%clk 0:02:25]}  g6 {[%clk 0:01:25]} 24. Bxg6 {[%clk 0:02:18]}  fxg6 {[%clk 0:01:24]} 25. Qxg6+ {[%clk 0:02:14]}  Qg7 {[%clk 0:01:24]} 26. Qc2 {[%clk 0:02:12]}  Ne4 {[%clk 0:01:19]} 27. Nc3 {[%clk 0:02:04]}  Nxe5 {[%clk 0:01:17]} 28. dxe5 {[%clk 0:02:02]}  Nxc3 {[%clk 0:01:15]} 29. Qxc3 {[%clk 0:02:00]}  Kh8 {[%clk 0:01:14]} 30. Rf2 {[%clk 0:01:55]}  Bc6 {[%clk 0:01:10]} 31. f5 {[%clk 0:01:48]}  Rxf5 {[%clk 0:01:05]} 32. Rxf5 {[%clk 0:01:45]}  d4 {[%clk 0:01:05]} 33. Qd2 {[%clk 0:01:41]}  dxe3 {[%clk 0:01:04]} 34. Qe2 {[%clk 0:01:40]}  Rg8 {[%clk 0:00:56]} 35. Ra2 {[%clk 0:01:31]}  Qd7 {[%clk 0:00:49]} 36. Rf6 {[%clk 0:01:22]}  Rxg2+ {[%clk 0:00:24]} 37. Qxg2 {[%clk 0:01:21]}  Bxg2 {[%clk 0:00:23]} 38. Kxg2 {[%clk 0:01:07]}  Qd5+ {[%clk 0:00:22]} 39. Rf3 {[%clk 0:01:05]}  c3 {[%clk 0:00:17]} 40. Re2 {[%clk 0:01:01]} 1-0


[Site "https://www.chess.com"]

[Event "Titled Tuesday Blitz March 21 Early 2023"]
[White "Harriott, Tyrell"]
[Black "Karas, Marek"]
[WhiteFideId "2086484"]
[BlackFideId "14928558"]
[WhiteElo "2107"]
[BlackElo "2233"]
[Result "1-0"]
[Round "06"]
[TimeControl "180+2"]
[Date "2023.03.21"]
[WhiteClock "0:00:18"]
[BlackClock "0:00:01"]

1. d4 {[%clk 0:03:00]}  Nf6 {[%clk 0:02:16]} 2. e3 {[%clk 0:03:00]}  g6 {[%clk 0:02:16]} 3. Bd3 {[%clk 0:03:01]}  Bg7 {[%clk 0:02:16]} 4. f4 {[%clk 0:03:01]}  O-O {[%clk 0:02:16]} 5. Nf3 {[%clk 0:03:02]}  d6 {[%clk 0:02:17]} 6. O-O {[%clk 0:03:02]}  Nbd7 {[%clk 0:02:17]} 7. f5 {[%clk 0:03:02]}  e5 {[%clk 0:02:11]} 8. fxe6 {[%clk 0:03:02]}  fxe6 {[%clk 0:02:10]} 9. Ng5 {[%clk 0:03:02]}  Qe7 {[%clk 0:02:09]} 10. Qe1 {[%clk 0:03:02]}  Nd5 {[%clk 0:01:59]} 11. Nf3 {[%clk 0:02:56]}  e5 {[%clk 0:01:55]} 12. Bc4 {[%clk 0:02:55]}  Nb6 {[%clk 0:01:53]} 13. Bb3 {[%clk 0:02:55]}  Be6 {[%clk 0:01:48]} 14. e4 {[%clk 0:02:52]}  Nf4 {[%clk 0:01:41]} 15. d5 {[%clk 0:02:52]}  Bd7 {[%clk 0:01:39]} 16. Nc3 {[%clk 0:02:50]}  Rf7 {[%clk 0:01:30]} 17. Be3 {[%clk 0:02:45]}  Raf8 {[%clk 0:01:29]} 18. Qd2 {[%clk 0:02:34]}  h6 {[%clk 0:01:22]} 19. Kh1 {[%clk 0:02:29]}  g5 {[%clk 0:01:13]} 20. Qe1 {[%clk 0:02:10]}  Ng6 {[%clk 0:01:07]} 21. Nd2 {[%clk 0:02:07]}  Rxf1+ {[%clk 0:01:03]} 22. Nxf1 {[%clk 0:02:07]}  g4 {[%clk 0:01:02]} 23. Ng3 {[%clk 0:02:06]}  Qh4 {[%clk 0:00:59]} 24. Qd2 {[%clk 0:02:01]}  Nf4 {[%clk 0:00:56]} 25. Nf5 {[%clk 0:01:51]}  Bxf5 {[%clk 0:00:52]} 26. exf5 {[%clk 0:01:50]}  Nh5 {[%clk 0:00:48]} 27. Kg1 {[%clk 0:01:41]}  g3 {[%clk 0:00:41]} 28. h3 {[%clk 0:01:36]}  Rxf5 {[%clk 0:00:40]} 29. Bxh6 {[%clk 0:01:30]}  Nf4 {[%clk 0:00:34]} 30. Bxg7 {[%clk 0:01:20]}  Kxg7 {[%clk 0:00:35]} 31. Re1 {[%clk 0:01:13]}  Nd7 {[%clk 0:00:33]} 32. Ne4 {[%clk 0:01:11]}  Nf6 {[%clk 0:00:31]} 33. Qe3 {[%clk 0:01:08]}  Nxe4 {[%clk 0:00:30]} 34. Qxe4 {[%clk 0:01:08]}  Rf6 {[%clk 0:00:26]} 35. c3 {[%clk 0:01:06]}  Ng6 {[%clk 0:00:25]} 36. Bc2 {[%clk 0:00:57]}  Qxe4 {[%clk 0:00:24]} 37. Bxe4 {[%clk 0:00:55]}  Nh4 {[%clk 0:00:22]} 38. Re3 {[%clk 0:00:51]}  Rf4 {[%clk 0:00:17]} 39. Rxg3+ {[%clk 0:00:50]}  Kf6 {[%clk 0:00:18]} 40. Re3 {[%clk 0:00:50]}  Nf5 {[%clk 0:00:14]} 41. Bxf5 {[%clk 0:00:42]}  Kxf5 {[%clk 0:00:15]} 42. Rf3 {[%clk 0:00:40]}  Rxf3 {[%clk 0:00:14]} 43. gxf3 {[%clk 0:00:40]}  Kf4 {[%clk 0:00:08]} 44. Kf2 {[%clk 0:00:38]}  c6 {[%clk 0:00:08]} 45. dxc6 {[%clk 0:00:37]}  bxc6 {[%clk 0:00:08]} 46. b4 {[%clk 0:00:36]}  d5 {[%clk 0:00:07]} 47. a4 {[%clk 0:00:32]}  a6 {[%clk 0:00:06]} 48. h4 {[%clk 0:00:30]}  Kf5 {[%clk 0:00:02]} 49. Ke3 {[%clk 0:00:30]}  Kg6 {[%clk 0:00:02]} 50. c4 {[%clk 0:00:18]}  d4+ {[%clk 0:00:01]} 51. Ke4 {[%clk 0:00:18]} 1-0


[Site "https://www.chess.com"]

[Event "Titled Tuesday Blitz March 21 Early 2023"]
[White "Ljukin, Sergei"]
[Black "Jovic, Stanoje"]
[WhiteFideId "14102200"]
[BlackFideId "905020"]
[WhiteElo "2312"]
[BlackElo "2236"]
[Result "0-1"]
[Round "06"]
[TimeControl "180+2"]
[Date "2023.03.21"]
[WhiteClock "0:00:01"]
[BlackClock "0:00:55"]

1. e4 {[%clk 0:03:00]}  c6 {[%clk 0:02:59]} 2. d4 {[%clk 0:03:00]}  d5 {[%clk 0:02:59]} 3. e5 {[%clk 0:03:01]}  c5 {[%clk 0:03:00]} 4. Nf3 {[%clk 0:03:00]}  Nc6 {[%clk 0:02:56]} 5. c4 {[%clk 0:03:00]}  Bg4 {[%clk 0:02:54]} 6. cxd5 {[%clk 0:03:00]}  Bxf3 {[%clk 0:02:54]} 7. Qxf3 {[%clk 0:02:54]}  Nxd4 {[%clk 0:02:54]} 8. Qd1 {[%clk 0:02:52]}  Qxd5 {[%clk 0:02:52]} 9. Bb5+ {[%clk 0:02:51]}  Kd8 {[%clk 0:02:53]} 10. O-O {[%clk 0:02:49]}  e6 {[%clk 0:02:53]} 11. Nc3 {[%clk 0:02:40]}  Qxe5 {[%clk 0:02:52]} 12. Be3 {[%clk 0:02:33]}  Bd6 {[%clk 0:02:49]} 13. g3 {[%clk 0:02:28]}  g5 {[%clk 0:02:41]} 14. b4 {[%clk 0:01:34]}  Ke7 {[%clk 0:02:28]} 15. bxc5 {[%clk 0:01:25]}  Bxc5 {[%clk 0:02:28]} 16. Rc1 {[%clk 0:00:47]}  Nf6 {[%clk 0:02:18]} 17. Qa4 {[%clk 0:00:32]}  Ng4 {[%clk 0:01:51]} 18. Bxd4 {[%clk 0:00:19]}  Qxd4 {[%clk 0:01:44]} 19. Qxd4 {[%clk 0:00:18]}  Bxd4 {[%clk 0:01:44]} 20. Ne4 {[%clk 0:00:19]}  Rac8 {[%clk 0:01:37]} 21. h3 {[%clk 0:00:17]}  f5 {[%clk 0:01:28]} 22. hxg4 {[%clk 0:00:11]}  fxe4 {[%clk 0:01:27]} 23. Rfe1 {[%clk 0:00:07]}  Rxc1 {[%clk 0:01:21]} 24. Rxc1 {[%clk 0:00:08]}  e3 {[%clk 0:01:21]} 25. Rc7+ {[%clk 0:00:07]}  Kd6 {[%clk 0:01:21]} 26. Rd7+ {[%clk 0:00:07]}  Ke5 {[%clk 0:01:21]} 27. fxe3 {[%clk 0:00:07]}  Bxe3+ {[%clk 0:01:21]} 28. Kg2 {[%clk 0:00:07]}  a6 {[%clk 0:01:16]} 29. Bc4 {[%clk 0:00:06]}  b5 {[%clk 0:01:15]} 30. Bb3 {[%clk 0:00:06]}  Bc5 {[%clk 0:01:01]} 31. Rc7 {[%clk 0:00:04]}  Kd6 {[%clk 0:00:58]} 32. Rg7 {[%clk 0:00:01]}  a5 {[%clk 0:00:55]} 0-1


[Site "https://www.chess.com"]

[Event "Titled Tuesday Blitz March 21 Early 2023"]
[White "Szyszylo, Rafal"]
[Black "Degenbaev, Aziz"]
[WhiteFideId "1109626"]
[BlackFideId "13802640"]
[WhiteElo "1951"]
[BlackElo "2152"]
[Result "0-1"]
[Round "06"]
[TimeControl "180+2"]
[Date "2023.03.21"]
[WhiteClock "0:00:02"]
[BlackClock "0:00:07"]

1. e4 {[%clk 0:02:55]}  c5 {[%clk 0:02:59]} 2. Ne2 {[%clk 0:02:54]}  d6 {[%clk 0:02:59]} 3. g3 {[%clk 0:02:53]}  Nc6 {[%clk 0:02:52]} 4. Bg2 {[%clk 0:02:50]}  g6 {[%clk 0:02:53]} 5. c3 {[%clk 0:02:48]}  Bg7 {[%clk 0:02:48]} 6. d4 {[%clk 0:02:46]}  cxd4 {[%clk 0:02:43]} 7. cxd4 {[%clk 0:02:46]}  Qb6 {[%clk 0:02:38]} 8. d5 {[%clk 0:02:38]}  Ne5 {[%clk 0:02:14]} 9. O-O {[%clk 0:02:35]}  Nf6 {[%clk 0:02:11]} 10. h3 {[%clk 0:02:31]}  O-O {[%clk 0:02:02]} 11. Nbc3 {[%clk 0:02:29]}  a6 {[%clk 0:01:49]} 12. Rb1 {[%clk 0:02:14]}  Qc7 {[%clk 0:01:46]} 13. Be3 {[%clk 0:02:10]}  Nc4 {[%clk 0:01:37]} 14. Bd4 {[%clk 0:02:10]}  b5 {[%clk 0:01:37]} 15. b3 {[%clk 0:02:01]}  Nb6 {[%clk 0:01:33]} 16. Rc1 {[%clk 0:01:59]}  Qb8 {[%clk 0:01:31]} 17. f4 {[%clk 0:01:25]}  b4 {[%clk 0:01:11]} 18. Nb1 {[%clk 0:01:22]}  e6 {[%clk 0:01:04]} 19. Rc6 {[%clk 0:01:12]}  Nbd7 {[%clk 0:00:52]} 20. dxe6 {[%clk 0:01:10]}  fxe6 {[%clk 0:00:52]} 21. Ba1 {[%clk 0:00:48]}  Ne8 {[%clk 0:00:46]} 22. Bxg7 {[%clk 0:00:46]}  Kxg7 {[%clk 0:00:45]} 23. Nd4 {[%clk 0:00:45]}  Nc5 {[%clk 0:00:36]} 24. e5 {[%clk 0:00:44]}  Bd7 {[%clk 0:00:33]} 25. exd6 {[%clk 0:00:34]}  Bxc6 {[%clk 0:00:27]} 26. Nxc6 {[%clk 0:00:32]}  Qxd6 {[%clk 0:00:26]} 27. Qc2 {[%clk 0:00:12]}  Nf6 {[%clk 0:00:16]} 28. Rc1 {[%clk 0:00:11]}  Ncd7 {[%clk 0:00:13]} 29. Rd1 {[%clk 0:00:11]}  Qc7 {[%clk 0:00:12]} 30. Qb2 {[%clk 0:00:11]}  Rac8 {[%clk 0:00:09]} 31. Nxb4 {[%clk 0:00:09]}  Qb6+ {[%clk 0:00:09]} 32. Qd4 {[%clk 0:00:05]}  Qxd4+ {[%clk 0:00:09]} 33. Rxd4 {[%clk 0:00:06]}  Rc1+ {[%clk 0:00:10]} 34. Kh2 {[%clk 0:00:05]}  Rxb1 {[%clk 0:00:10]} 35. Nxa6 {[%clk 0:00:05]}  Rb2 {[%clk 0:00:10]} 36. g4 {[%clk 0:00:05]}  e5 {[%clk 0:00:10]} 37. fxe5 {[%clk 0:00:04]}  Nxe5 {[%clk 0:00:11]} 38. Kg3 {[%clk 0:00:03]}  Rxa2 {[%clk 0:00:10]} 39. Nc5 {[%clk 0:00:03]}  Rc8 {[%clk 0:00:09]} 40. Ne6+ {[%clk 0:00:03]}  Kf7 {[%clk 0:00:09]} 41. Nf4 {[%clk 0:00:03]}  Rc3+ {[%clk 0:00:09]} 42. Kh4 {[%clk 0:00:02]}  Rxg2 {[%clk 0:00:08]} 43. g5 {[%clk 0:00:02]}  Nf3# {[%clk 0:00:07]} 0-1


[Site "https://www.chess.com"]